Cogmind - Beta 15 @@@ ROGUE MODE // 2025.09.15 @ 16:05:24 Player: shapeshifter Result: Destroyed by Y-45 Defender with Heavy Assault Rifle Performance ------------- Evolutions (2) 1000 Regions Visited (8) 1600 Robots Destroyed (124) 620 Value Destroyed (3434) 3434 Prototype IDs (31) 620 Alien Tech Used (0) 0 Bonus (378) 378 TOTAL SCORE: 7652 Bonus ------- High Alert Combat Kills 150 Follower Combat Kills 28 Entered Garrisons 200 Cogmind --------- Core Integrity 0/550 Matter 191/300 Energy 100/100 System Corruption 0% Temperature Cool (9) Movement Hovering (102) Ox1 Location -8/Garrison Parts ------- > --- POWER (1) -------- (None) > --- PROPULSION (3) --- Aerolev Unit Aerolev Unit Aerolev Unit > --- UTILITY (4) ------ Large Storage Unit Terrain Scan Processor Improved Salvage Targeting Computer > --- WEAPON (3) ------- Pulse Rifle Precision Grenade Launcher > --- INVENTORY (15) --- Makeshift Salvage Targeting Computer Energy Filter Graphene Brace Shock Absorption System Pulse Rifle Pulse Rifle YOLO Cannon Makeshift Sword Makeshift Spear Peak State ------------ > --- POWER ------------ Light Nuclear Core > --- PROPULSION ------- Light Treads Light Treads Advanced Treads > --- UTILITY ---------- Huge Storage Unit Makeshift Terrain Scanner Terrain Scan Processor Medium Armor Plating > --- WEAPON ----------- Advanced Beam Rifle Makeshift Laser Precision Grenade Launcher > --- INVENTORY -------- Light Nuclear Core Aerolev Unit Aerolev Unit Aerolev Unit Large Storage Unit Improved Salvage Targeting Computer Improved Salvage Targeting Computer Makeshift Salvage Targeting Computer Energy Filter Medium Armor Plating Shock Absorption System Pulse Rifle Pulse Rifle Pulse Rifle Pulse Rifle YOLO Cannon Precision Grenade Launcher Precision Grenade Launcher Precision Grenade Launcher Makeshift Sword Makeshift Spear [Rating: 42] Favorites ----------- Power Cooled Ion Engine Engine Cooled Ion Engine Power Core Light Nuclear Core Propulsion Light Treads Treads Light Treads Wheel Compact Wheel Hover Unit Aerolev Unit Utility Light Armor Plating Device Makeshift Terrain Scanner Storage Huge Storage Unit Processor Terrain Scan Processor Hackware Hacking Suite Protection Light Armor Plating Weapon Heavy Assault Rifle Energy Gun Advanced Beam Rifle Energy Cannon Particle Cannon Ballistic Gun Heavy Assault Rifle Launcher Precision Grenade Launcher Piercing Weapon Makeshift Spear Build | -11 -10 -10 -9 -9 -9 -8 -8 -8 ------- Run | Yrd Mat Min Mat Min Exi Min Mat Gar Slots Evolved 4 | . . . 2 . . . 2 . Power . | . . . . . . . . . Propulsion 1 | . . . . . . . 1 . Utility 2 | . . . 2 . . . . . Weapon 1 | . . . . . . . 1 . Parts Attached 81 | 9 . 2 22 2 4 . 31 11 Power 9 | 1 . . 3 . . . 5 . Engine 5 | 1 . . 3 . . . 1 . Core 4 | . . . . . . . 4 . Reactor . | . . . . . . . . . Propulsion 24 | 4 . . 4 1 2 . 9 4 Treads 17 | 2 . . 4 1 2 . 6 2 Leg . | . . . . . . . . . Wheel 4 | 2 . . . . . . 2 . Hover 3 | . . . . . . . 1 2 Flight . | . . . . . . . . . Utility 23 | 2 . 2 8 1 1 . 7 2 Device 4 | 1 . 1 . . . . 2 . Storage 4 | 1 . . 2 . . . . 1 Processor 2 | . . . . . . . 1 1 Hackware 2 | . . 1 . . 1 . . . Protection 11 | . . . 6 1 . . 4 . Artifact . | . . . . . . . . . Weapon 25 | 2 . . 7 . 1 . 10 5 Energy Gun 12 | . . . 3 . . . 6 3 Energy Cannon 2 | . . . 1 . . . 1 . Ballistic Gun 6 | 2 . . 3 . 1 . . . Ballistic Cannon . | . . . . . . . . . Launcher 4 | . . . . . . . 3 1 Special Weapon . | . . . . . . . . . Impact Weapon . | . . . . . . . . . Slashing Weapon . | . . . . . . . . . Piercing Weapon 1 | . . . . . . . . 1 Special Melee Weapon . | . . . . . . . . . Unidentified Prototypes 8 | . . . 5 . . . 3 . Corrupted Parts 2 | . . 2 . . . . . . System Corruption 6 | . . 6 . . . . . . Parts Lost 31 | . . 1 1 2 . . 20 7 Power 3 | . . . . . . . 3 . Propulsion 8 | . . . . . . . 4 4 Utility 10 | . . 1 . 2 . . 7 . Weapon 10 | . . . 1 . . . 6 3 Highest Loss Streak 13 | . . 1 1 2 . . 13 4 To Critical Strikes . | . . . . . . . . . Average Backups 16 | 3 4 5 10 21 22 24 22 14 Power 2 | . 1 1 1 5 5 5 1 . Propulsion 4 | 1 2 2 3 7 6 6 3 2 Utility 3 | . 1 1 2 1 1 3 6 4 Weapon 6 | . . . 2 7 9 10 10 6 Tool/Special . | . . . . . . . . . Unused Backups 13 | . . . 3 . . . 4 6 Power . | . . . . . . . . . Propulsion 2 | . . . 1 . . . 1 . Utility 8 | . . . 2 . . . 2 4 Weapon 3 | . . . . . . . 1 2 Tool/Special . | . . . . . . . . . Average Slot Usage (%) 95 | . 100 98 99 99 100 100 89 70 Engine 8 | . 14 14 11 11 11 11 1 . Core 1 | . . . . . . . 6 . Treads 22 | . 28 28 22 22 22 22 23 8 Device 1 | . 14 12 . . . . 4 . Storage 10 | . 14 14 11 11 11 11 9 9 Processor 1 | . . . . . . . 4 17 Hackware 8 | . . . 11 11 11 11 4 . Protection 16 | . . . 21 21 22 22 9 . Energy Gun 5 | . . . 4 . . . 14 14 Energy Cannon 1 | . . . 2 . . . . 1 Ballistic Gun 15 | . 28 28 14 22 22 22 5 . Launcher 1 | . . . . . . . 5 5 Peak Build Rating 42 | 7 7 11 22 22 27 26 42 39 Average Rating 23 | 4 7 8 18 21 24 26 35 29 On Entrance 15 | . 7 7 10 21 22 26 26 23 Naked Turns . | . . . . . . . . . Heaviest Build 107 | 15 15 15 101 104 104 104 107 100 Greatest Support 62 | 40 40 40 43 43 43 40 62 26 Greatest Overweight (x) 29 | . . . 2 2 2 2 29 29 Average Overweight (x) 1 | . . . . 2 2 2 1 3 Largest Inventory Capacity 25 | 8 8 8 25 25 25 25 25 25 Average Capacity 19 | 7 8 8 14 25 25 25 25 22 Most Carried 25 | 5 4 8 22 22 25 25 25 19 Average Carried 17 | 3 4 5 10 21 23 25 23 15 Final Capacity 25 | 8 8 8 25 25 25 25 25 15 Final Carried 25 | 4 4 7 22 20 25 25 19 10 Class Distribution -------------------- 41% | Scavenger-Mutant 39% | Mutant 6% | Tank 5% | Skirmisher 3% | Gunner Dominant Class ---------------- Mutant | -10/Materials Mutant | -10/Mines Mutant | -9/Materials Scavenger-Mutant | -9/Mines Scavenger-Mutant | -9/Exiles Scavenger-Mutant | -8/Mines Tank | -8/Materials Gunner | -8/Garrison Resources | -11 -10 -10 -9 -9 -9 -8 -8 -8 ----------- Run | Yrd Mat Min Mat Min Exi Min Mat Gar Matter Collected 2179 | 326 . 37 486 71 131 122 823 183 Remotely . | . . . . . . . . . Salvage Created 4161 | 99 . 38 1242 170 131 243 1807 431 Parts 260 | 12 . 6 83 19 6 8 94 32 Haulers Intercepted 8 | . . . 4 . . . 4 . Recyclers Shooed 2 | . . . . . . . 2 . Parts Field Recycled . | . . . . . . . . . Retrieved Matter . | . . . . . . . . . Parts Self-Destructed . | . . . . . . . . . Prevented . | . . . . . . . . . Kills | -11 -10 -10 -9 -9 -9 -8 -8 -8 ------- Run | Yrd Mat Min Mat Min Exi Min Mat Gar Combat Hostiles Destroyed 91 | . . 4 25 11 . 3 33 15 Melee 2 | . . . . . . . . 2 Guns 55 | . . 4 16 11 . 3 18 3 Cannons 9 | . . . 9 . . . . . AOE 25 | . . . . . . . 15 10 Classes Destroyed 16 | 2 . 2 5 . . 1 6 . Worker 6 | . . . 1 . . . 5 . Builder 2 | . . . . . . . 2 . Tunneler 2 | 2 . . . . . . . . Hauler 8 | . . . 4 . . . 4 . Recycler 7 | 1 . . . . . 1 5 . Operator 1 | . . . . . . . 1 . Watcher 7 | . . . 4 . . . 3 . Swarmer 30 | . . 3 10 11 . . 3 3 Cutter 5 | . . . . . . . 2 3 Grunt 28 | . . . 7 . . 2 15 4 Brawler 2 | . . . . . . 1 . 1 Duelist 1 | . . . . . . . 1 . Sentry 20 | . . . 8 . . . 9 3 Demolisher 1 | . . 1 . . . . . . Hunter 3 | . . . . . . . 2 1 Heavy 1 | . . . . . . . 1 . Best Kill Streak 8 | 3 . 3 5 4 . 3 8 8 Combat Bots Only 8 | . . 3 3 4 . 3 6 8 Max Kills in Single Turn 3 | 1 . 1 1 1 . 1 3 3 Gunslinging . | . . . . . . . . . Exploded 3 | . . . . . . . 3 3 Melee 1 | . . . . . . . . 1 Uniques/NPCs Destroyed . | . . . . . . . . . Combat | -11 -10 -10 -9 -9 -9 -8 -8 -8 -------- Run | Yrd Mat Min Mat Min Exi Min Mat Gar Hostile Shots Fired 499 | . . 18 124 63 . 27 214 53 Missed 145 | . . 3 44 14 . 8 61 15 Hits 354 | . . 15 80 49 . 19 153 38 Melee 10 | . . . . . . 2 6 2 Projectile 344 | . . 15 80 49 . 17 147 36 AOE 5 | . . 5 . . . . . . Critical Strikes 16 | . . . 5 1 . 1 7 2 Damage Taken 5518 | . . 294 923 388 . 273 2837 803 Core 718 | . . 18 117 19 . 8 333 223 Absorbed by Shields . | . . . . . . . . . Ignored by Resistances 70 | . . . 70 . . . . . Core Remaining (%) 85 | 100 . 92 . . . 64 . . Volleys Fired 270 | 6 . 7 87 24 4 16 107 19 Largest 3 | 2 . 2 2 2 2 2 3 3 Hottest 187 | 40 . 40 113 46 46 46 183 187 Shots Fired 550 | 12 . 14 168 48 8 32 230 38 Gun 463 | 12 . 14 120 48 8 32 204 25 Cannon 51 | . . . 48 . . . . 3 Launcher 36 | . . . . . . . 26 10 Special . | . . . . . . . . . Kinetic 236 | 12 . 14 77 48 8 32 45 . Thermal 237 | . . . 50 . . . 159 28 Explosive 36 | . . . . . . . 26 10 Electromagnetic 41 | . . . 41 . . . . . Robot Hit Streak 15 | 5 . 7 14 3 7 5 15 5 Robot Miss Streak 4 | 2 . 3 4 4 . 4 4 2 Penetration Max . | . . . . . . . . . Secondary Targets 7 | . . . 1 2 . 2 2 . Max Gunslinging Chain 1 | . . . 1 1 . 1 1 . Shots Hit Robots 355 | 8 . 7 118 23 6 21 145 27 Core Hits 196 | 4 . 4 50 11 3 8 86 30 Critical Kills 2 | . . . . 1 . 1 . . Critical Parts Destroyed . | . . . . . . . . . Critical Strikes 18 | . . . . 1 . 1 16 . Burn 15 | . . . . . . . 15 . Destroy 3 | . . . . 1 . 1 1 . Melee Attacks 13 | . . . . . . . . 13 Impact . | . . . . . . . . . Slashing . | . . . . . . . . . Piercing 13 | . . . . . . . . 13 Sneak Attacks . | . . . . . . . . . Combat Hostiles . | . . . . . . . . . Follow-up Attacks . | . . . . . . . . . Damage Inflicted 9079 | 107 . 101 1914 404 96 360 4567 1530 Guns 5061 | 107 . 101 1249 404 96 360 2475 269 Cannons 634 | . . . 634 . . . . . Explosions 3196 | . . . 31 . . . 2092 1073 Melee 188 | . . . . . . . . 188 Ramming . | . . . . . . . . . Kinetic 2285 | 107 . 101 710 404 96 360 507 . Thermal 2937 | . . . 700 . . . 1968 269 Explosive 3165 | . . . . . . . 2092 1073 Electromagnetic 504 | . . . 504 . . . . . Impact . | . . . . . . . . . Slashing . | . . . . . . . . . Piercing 188 | . . . . . . . . 188 Highest Corruption 6 | . . 6 . . . . . . Average Corruption 5 | . . 5 . . . . . . Corruption Purged . | . . . . . . . . . Corruption Blocked . | . . . . . . . . . Overload Shots . | . . . . . . . . . Overflow Damage 105 | . . . 12 . . . 75 18 Projectiles 12 | . . . 12 . . . . . Explosions 93 | . . . . . . . 75 18 Melee . | . . . . . . . . . Knockbacks . | . . . . . . . . . Impact . | . . . . . . . . . Kinetic . | . . . . . . . . . Secondary . | . . . . . . . . . Self-Inflicted Damage 500 | . . . . . . . 267 233 Shots 16 | . . . . . . . 10 6 Rammed . | . . . . . . . . . Targets Rammed . | . . . . . . . . . Kicked . | . . . . . . . . . Crushed . | . . . . . . . . . Highest Temperature 561 | . . . 323 . . 46 561 225 Average Temperature 108 | . . . 81 . . 28 138 61 Received Heat Transfer 1569 | . . 6 420 . . 126 801 216 Effects 22 | . . . 2 . . . 20 . Shutdowns 3 | . . . . . . . 3 . Energy Bleed 2 | . . . . . . . 2 . Interference 11 | . . . 2 . . . 9 . Matter Decay 2 | . . . . . . . 2 . Damage (minor) 2 | . . . . . . . 2 . Damage (major) 2 | . . . . . . . 2 . Siege Activations . | . . . . . . . . . Martial Activations . | . . . . . . . . . Shielding Activations . | . . . . . . . . . Robots Disrupted . | . . . . . . . . . Combat Hostiles . | . . . . . . . . . Robots Corrupted . | . . . . . . . . . Combat Hostiles . | . . . . . . . . . Parts Fried 1 | . . . 1 . . . . . Impact Corruptions . | . . . . . . . . . Robots Melted 1 | . . . . . . . 1 . Combat Hostiles . | . . . . . . . . . Parts Melted 18 | . . . 3 . . . 15 . Heat Transferred 6784 | . . . 1271 . . . 4958 555 Parts Sabotaged . | . . . . . . . . . Parts Stolen . | . . . . . . . . . Parts Stripped . | . . . . . . . . . Power Chain Reactions 1 | . . . 1 . . . . . Alert | -11 -10 -10 -9 -9 -9 -8 -8 -8 ------- Run | Yrd Mat Min Mat Min Exi Min Mat Gar Maximum Alert Level 3 | . . . 1 . . . 2 3 Low Security (%) 77 | 100 100 100 98 100 . 100 37 . Level 1 12 | . . . 1 . . . 45 11 Level 2 9 | . . . . . . . 17 70 Level 3 1 | . . . . . . . . 18 Level 4 . | . . . . . . . . . Level 5 . | . . . . . . . . . High Security . | . . . . . . . . . Max Security . | . . . . . . . . . Peak Influence 797 | 10 . 71 207 141 . 134 528 797 Initial 337 | . . . 1 51 . . 32 337 Average 164 | 1 . 12 126 48 . 100 251 542 Influence Increases 3170 | 15 . 111 765 295 5 204 1245 530 Destroy 0b10 Robot/C 1900 | . . 80 500 220 . 140 660 300 Destroy 0b10 Robot/NC 170 | 15 . . 45 . 5 5 100 . Destroy Leader 460 | . . 20 166 30 . 20 194 30 Allied During Kill 20 | . . 11 . . . 9 . . Successful Hack 19 | . . . 19 . . . . . Disable Machine 105 | . . . . 15 . 30 45 15 Anti-Garrison Action 100 | . . . . . . . . 100 Destroy Structure 246 | . . . 5 . . . 186 55 Partial Spotted 15 | . . . 15 . . . . . Lose Combat Pursuer 135 | . . . 15 30 . . 60 30 Influence Decreases 2373 | 15 . 105 638 327 106 120 810 252 Entered New Map 422 | . . . 5 82 101 . 52 182 Time Decay 1594 | 15 . 78 623 225 5 80 568 . Lost Part 300 | . . 10 10 20 . . 190 70 Lost Ally 57 | . . 17 . . . 40 . . Squads Dispatched 9 | . . . 2 . . . 7 . Investigation . | . . . . . . . . . Extermination . | . . . . . . . . . Reinforcement 6 | . . . 2 . . . 4 . Assault . | . . . . . . . . . Garrison 3 | . . . . . . . 3 . Intercept . | . . . . . . . . . Searches Triggered . | . . . . . . . . . Construction Impeded . | . . . . . . . . . Haulers Reinforced . | . . . . . . . . . Active Scanning Responses . | . . . . . . . . . Cargo Convoy Interrupts . | . . . . . . . . . Stealth | -11 -10 -10 -9 -9 -9 -8 -8 -8 --------- Run | Yrd Mat Min Mat Min Exi Min Mat Gar Distress Signals 8 | . . . 3 . . . 5 . Communications Jammed . | . . . . . . . . . Distress Signals . | . . . . . . . . . Times Spotted 131 | . . 4 42 12 . 7 49 17 Peak Tracking Total 8 | . . 2 8 4 . 4 5 8 Tactical Retreats 7 | . . . 1 1 . . 4 1 Traps | -11 -10 -10 -9 -9 -9 -8 -8 -8 ------- Run | Yrd Mat Min Mat Min Exi Min Mat Gar Traps Triggered 7 | . . . . . . . 1 6 Indirectly . | . . . . . . . . . Trap Hack Attempts . | . . . . . . . . . Triggered . | . . . . . . . . . Disarmed . | . . . . . . . . . Reprogrammed . | . . . . . . . . . Reused . | . . . . . . . . . Traps Extracted . | . . . . . . . . . Installed . | . . . . . . . . . Triggered . | . . . . . . . . . Machines | -11 -10 -10 -9 -9 -9 -8 -8 -8 ---------- Run | Yrd Mat Min Mat Min Exi Min Mat Gar Machines Disabled 8 | . . . . 1 . 2 3 2 Max in Single Turn 1 | . . . . 1 . 1 1 1 Garrison Relay 1 | . . . . . . . . 1 Machines Repaired . | . . . . . . . . . Machines Dismantled . | . . . . . . . . . Machines Sabotaged . | . . . . . . . . . Overloaded Fab Kills . | . . . . . . . . . Hacking | -11 -10 -10 -9 -9 -9 -8 -8 -8 --------- Run | Yrd Mat Min Mat Min Exi Min Mat Gar Machines Accessed 13 | . . 1 5 . 2 . 4 1 Terminals 8 | . . . 4 . . . 3 1 Fabricators . | . . . . . . . . . Repair Stations . | . . . . . . . . . Recycling Units 1 | . . . 1 . . . . . Scanalyzers . | . . . . . . . . . Garrison Access 1 | . . . . . . . 1 . Total Hacks 30 | . . 1 14 . 2 . 10 3 Successful 12 | . . 1 5 . 2 . 4 . Failed 18 | . . . 9 . . . 6 3 Catastrophic 3 | . . . 2 . . . 1 . Database Lockouts . | . . . . . . . . . Manual 15 | . . . 6 . 1 . 8 . Terminals 24 | . . . 12 . . . 9 3 Fabricators . | . . . . . . . . . Repair Stations . | . . . . . . . . . Recycling Units 2 | . . . 2 . . . . . Scanalyzers . | . . . . . . . . . Garrison Access 1 | . . . . . . . 1 . Terminal Hacks 9 | . . 1 3 . 2 . 3 . Record 2 | . . . . . 1 . 1 . Open Door 1 | . . 1 . . . . . . Registered Components 1 | . . . 1 . . . . . Registered Prototypes 1 | . . . 1 . . . . . Zone Layout 3 | . . . 1 . . . 2 . Proto ID Catalog 1 | . . . . . 1 . . . Fabricator Hacks . | . . . . . . . . . Repair Station Hacks . | . . . . . . . . . Recycling Unit Hacks 1 | . . . 1 . . . . . Retrieve Components 1 | . . . 1 . . . . . Scanalyzer . | . . . . . . . . . Garrison Access Hacks 1 | . . . . . . . 1 . Unlock Access 1 | . . . . . . . 1 . Unauthorized Hacks 1 | . . . 1 . . . . . Terminals 1 | . . . 1 . . . . . Botnet 1 | . . . 1 . . . . . Fabricators . | . . . . . . . . . Repair Stations . | . . . . . . . . . Recycling Units . | . . . . . . . . . Scanalyzers . | . . . . . . . . . Garrison Access . | . . . . . . . . . Data Cores Recovered 2 | . . . 1 . . . 1 . Used . | . . . . . . . . . Hacking Detections 9 | . . . 5 . . . 3 1 Full Trace Events 1 | . . . . . . . . 1 Feedback Events . | . . . . . . . . . Feedback Blocked . | . . . . . . . . . Robot Schematics Acquired . | . . . . . . . . . Robots Built . | . . . . . . . . . Authchips . | . . . . . . . . . Time . | . . . . . . . . . Total Robot Build Rating . | . . . . . . . . . Part Schematics Acquired . | . . . . . . . . . Parts Built . | . . . . . . . . . Authchips . | . . . . . . . . . Time . | . . . . . . . . . Total Part Build Rating . | . . . . . . . . . Parts Repaired . | . . . . . . . . . Time . | . . . . . . . . . Parts Recycled . | . . . . . . . . . Recycled Matter . | . . . . . . . . . Retrieved Matter . | . . . . . . . . . Retrieved Components 10 | . . . 10 . . . . . Parts Scanalyzed . | . . . . . . . . . Part Schematics Acquired . | . . . . . . . . . Parts Damaged . | . . . . . . . . . Bothacking | -11 -10 -10 -9 -9 -9 -8 -8 -8 ------------ Run | Yrd Mat Min Mat Min Exi Min Mat Gar Used RIF Installer . | . . . . . . . . . Robots Hacked . | . . . . . . . . . Non-combat . | . . . . . . . . . Combat . | . . . . . . . . . Robot Hacks Applied . | . . . . . . . . . Relay Couplers Released 5 | . . . . . . . . 5 Machine Destruction 5 | . . . . . . . . 5 Fabnet Peak Effective % . | . . . . . . . . . Robots Rewired 3 | . . . . . 3 . . . Allies Hacked . | . . . . . . . . . Hacks Repelled . | . . . . . . . . . Allies | -11 -10 -10 -9 -9 -9 -8 -8 -8 -------- Run | Yrd Mat Min Mat Min Exi Min Mat Gar Total Allies 7 | . . 3 . 1 3 . . . Largest Group 3 | . . 3 . 1 3 2 . . Highest-Rated Group 40 | . . 40 . 31 39 16 . . Highest-Rated Ally 31 | . . 16 . 31 31 8 . . Total Orders . | . . . . . . . . . Ally Attacks 29 | . . 16 . . . 13 . . Total Damage 189 | . . 86 . . . 103 . . Kills 4 | . . . . . . 4 . . Allies Corrupted . | . . . . . . . . . Allies Melted . | . . . . . . . . . Intel | -11 -10 -10 -9 -9 -9 -8 -8 -8 ------- Run | Yrd Mat Min Mat Min Exi Min Mat Gar Active Infowar (turns) 1271 | 6 80 456 . . . . 729 . Terrain 729 | . . . . . . . 729 . Seismic 542 | 6 80 456 . . . . . . Robot Analysis Total . | . . . . . . . . . Derelict Logs Recovered 3 | . . 1 . 2 . . . . Drone Launches . | . . . . . . . . . Drone Recoveries . | . . . . . . . . . Exploration | -11 -10 -10 -9 -9 -9 -8 -8 -8 ------------- Run | Yrd Mat Min Mat Min Exi Min Mat Gar Turns Passed 9549 | 114 80 528 3284 991 2009 175 1831 537 Spaces Moved 3525 | 66 33 306 1466 280 603 35 544 192 Core 34 | 27 . . . . . . 5 2 Treads 3295 | 36 33 306 1466 280 603 35 526 10 Legs . | . . . . . . . . . Wheels 141 | 3 . . . . . . 13 125 Hover 55 | . . . . . . . . 55 Flight . | . . . . . . . . . Fastest Speed 42 | 50 160 160 160 320 320 320 135 42 Average Speed 228 | 111 160 160 194 320 320 320 251 159 Slowest Speed 1500 | 160 160 160 320 320 320 320 1500 1500 Overloaded Moves . | . . . . . . . . . Propulsion Burnouts . | . . . . . . . . . Robots Hopped . | . . . . . . . . . Potential Cave-ins . | . . . . . . . . . Cave-ins Triggered . | . . . . . . . . . Exploration Rate (%) 47 | 3 7 59 85 68 91 17 67 34 Regions Visited 8 Branch Regions 4 Pre-discovered Areas 2 | . . 1 . . 1 . . . Known Exits Taken 1 | . . . . . . . 1 . Unknown Exits Taken 7 | 1 1 1 1 1 1 1 . . Scrap Searched 2 | . . 1 . 1 . . . . Spaces Dug . | . . . . . . . . . Terrain Destroyed 326 | . . . 5 . . . 211 110 Melee . | . . . . . . . . . Projectile 5 | . . . . . . . . 5 AOE 321 | . . . 5 . . . 211 105 Terrain Rammed . | . . . . . . . . . Walls Destroyed . | . . . . . . . . . Machines Disabled . | . . . . . . . . . Actions | -11 -10 -10 -9 -9 -9 -8 -8 -8 --------- Run | Yrd Mat Min Mat Min Exi Min Mat Gar Total 4485 | 93 60 330 1743 329 678 68 812 372 Wait 384 | 4 28 12 108 21 38 18 86 69 Move 3518 | 65 32 305 1465 279 602 34 544 192 Hop . | . . . . . . . . . Pick Up 82 | 9 . 4 36 1 7 . 23 2 Fast Attach 8 | 2 . . 2 . . . 4 . Attach 51 | 5 . 1 6 2 3 . 22 12 Detach 3 | . . . . . . . 1 2 Swap 33 | 2 . 1 16 1 1 . 9 3 Drop 46 | . . . 23 1 4 . 16 2 Fire 270 | 6 . 7 87 24 4 16 107 19 Melee 13 | . . . . . . . . 13 Ram . | . . . . . . . . . Kick . | . . . . . . . . . Crush . | . . . . . . . . . Escape Stasis 58 | . . . . . . . . 58 Rewire 19 | . . . . . 19 . . . Trap . | . . . . . . . . . Miscellaneous . | . . . . . . . . . Route ------- -11/Scrapyard -10/Materials -10/Mines -9/Materials (discovered 5 exits: *Mat x3 / [*Min] / [*Sto]) -9/Mines -9/Exiles -8/Mines -8/Materials (discovered 4 exits: [*Fac x3] / Gar) -8/Garrison (discovered 1 exit: [*Mat]) History --------- Turn | Location | Event 10 | -11/Scrapyard | Discovered new exit (range 15) 115 | -11/Scrapyard | Entered Materials 115 | -10/Materials | Discovered new exit (range 7) 116 | -10/Materials | Met a group of wandering Federalists 195 | -10/Materials | Entered Mines 256 | -10/Mines | A weapon hastily lodged in a ceiling crevice suddenly fell to the ground 301 | -10/Mines | Build established: Mutant 302 | -10/Mines | Met a Derelict bent on vengeance 473 | -10/Mines | Assisted by bots powering up and referring to "LRC-V3" 482 | -10/Mines | Assembled infested the area 493 | -10/Mines | Learned location of Zion (-7) 567 | -10/Mines | Met a Derelict who couldn't figure out how to use a Trap Extractor 686 | -10/Mines | Lost 3 allies 711 | -10/Mines | Discovered new exit (range 7) 723 | -10/Mines | Entered Materials 723 | -9/Materials | Evolved 2 slots: Utility x2 1217 | -9/Materials | Discovered new exit (range 8) 1653 | -9/Materials | Discovered new exit (range 16) 1759 | -9/Materials | Discovered new exit (range 16) 2225 | -9/Materials | Discovered new exit (range 11) 2532 | -9/Materials | Build established: Scavenger-Mutant 2655 | -9/Materials | Discovered new exit (range 7) 4007 | -9/Materials | Entered Mines 4302 | -9/Mines | Learned location of 1 exit from Proximity Caves 4667 | -9/Mines | Found a hidden stash of uninstalled traps 4876 | -9/Mines | Learned Materials emergency access door positions 4895 | -9/Mines | Received a Mining Laser from a helpful Derelict 4985 | -9/Mines | Deemed a non-threat by the Exiles lab entrance 4985 | -9/Mines | Discovered new exit (range 5) 4998 | -9/Mines | Entered Exiles 4998 | -9/Exiles | Found Exiles lab destroyed 4998 | -9/Exiles | Accompanied by 1 ally 5049 | -9/Exiles | Build established: Mutant 5740 | -9/Exiles | Build established: Scavenger-Mutant 6027 | -9/Exiles | Opened EX-Vault 6044 | -9/Exiles | Found YOLO Cannon 6971 | -9/Exiles | Discovered new exit (range 11) 7007 | -9/Exiles | Entered Mines 7007 | -8/Mines | Accompanied by 3 allies 7073 | -8/Mines | Lost 3 allies 7160 | -8/Mines | Discovered new exit (range 7) 7182 | -8/Mines | Entered Materials 7182 | -8/Materials | Evolved 2 slots: Propulsion x1, Weapon x1 7697 | -8/Materials | Build established: Tank 7718 | -8/Materials | Discovered new exit (range 15) 8077 | -8/Materials | Discovered new exit (range 17) 8438 | -8/Materials | Build established: Skirmisher 8664 | -8/Materials | Discovered new exit (range 11) 8796 | -8/Materials | Garrison activated, responded to threat 8859 | -8/Materials | Lost 13 parts (3p3n3u4w) 8916 | -8/Materials | Core integrity fell below 50% 9013 | -8/Materials | Identified exit to Garrison 9013 | -8/Materials | Entered Garrison 9049 | -8/Garrison | Triggered checkpoint 9073 | -8/Garrison | Garrison Relay disabled 9340 | -8/Garrison | Build established: Gunner 9411 | -8/Garrison | Lost 4 parts (3n1w) 9441 | -8/Garrison | Core integrity fell below 20% 9477 | -8/Garrison | Destroyed 8 combat bots 9535 | -8/Garrison | Discovered new exit (range 14) 9550 | -8/Garrison | Destroyed by Y-45 Defender with Heavy Assault Rifle Last Messages --------------- 09510_ Field strength at 2. 09511_ Stasis field depleted. 09514_ Triggered Stasis Trap. 09514_ A bubble of rippling energy engulfs the area. 09514_ Field strength at 93. 09515_ Field strength at 86. 09516_ Field strength at 79. 09517_ Field strength at 72. 09518_ Field strength at 65. 09519_ Field strength at 58. 09520_ Field strength at 51. 09521_ Field strength at 44. 09522_ Field strength at 37. 09523_ Field strength at 30. 09524_ Field strength at 23. 09525_ Field strength at 16. 09526_ Field strength at 9. 09527_ Field strength at 2. 09528_ Stasis field depleted. 09535_ EXIT=FOUND Map ----- +----------------------------------------------------+ | | | | | | | | | | | | | ?????????????????????????????????????????????????? | | ?????????????????????????????????????????????????? | | ?????????????????????????????????????????????????? | | ?????????????????????????????????????????????????? | | ?????????????????????????????????????????????????? | | ?????????????????????????????????????????????????? | | ?????????????????????????????????????????????????? | | ?????????????????????????????????????????????????? | | ???????????????????????#######???????????????????? | | ???????????????????????# #???????????????????? | | ???????????????????????# < ????????????????????? | | ???????????????????????# ?????????????????????? | | ???????????????????????# #?????????????????????? | | ???????????????????????# #?????????????????????? | | ???????????????????????# #?????????????????????? | | ???????????????????????# #?????????????????????? | | ???????????????????????# #?????????????????????? | | ???????????????????????# #?????????????????????? | | ???????????????????????# #?????????????????????? | | ???????????????????????# @ #?????????????????????? | | ???????????????????????# #?????????????????????? | | ???????????????????????# #?????????????????????? | | ???????????????????????# #?????????????????????? | | ???????????????????????# #######???????????????? | | ???????????????????????# #???????????????? | | ???????????????????????# #???????????????? | | ???????????????????????# #### #???????????????? | | ???????????????????????# #?????#???????????????? | | ???????????????????????# #?????????????????????? | | ???????????????????????# #?????????????????????? | | ???????????????????????#^ ^#?????????????????????? | | ???????????????????????# #?????????????????????? | | #######????????????????# #?????????????????????? | | #????????????????# #?????????????????????? | | *#????????????????#Y ^#?????????????????????? | | ####%/#????????????????# #?????????????????????? | | ???# ^#???????????????## #?????????????????????? | | ???#=%#???????????????#T #?????????????????????? | | ??##![#???????????????## #?????????????????????? | | ??# ##???????????????# #?????????????????????? | | ?## ######??????????# #?????????????????????? | | ?# = # #??????????# #?????????????????????? | | ?## = # ############ #?????????????????????? | | ?# = ! [ #?????????????????????? | +----------------------------------------------------+ Best States ------------- Heat Dissipation 45 Energy Generation 14 Energy Capacity 280 Matter Stores 300 Matter Capacity 300 Sight Range 16 Terrain Scan Range 18 Terrain Scan Density 85 Armor Coverage 375 Resistance: TH 10 Evasion (%) 56 Recoil Reduction 3 Salvage Targeting 2 Offensive Hacking 11 Item Schematics ----------------- None Robot Schematics ------------------ None Fabricated ------------ Nothing Repaired ---------- Nothing Alien Tech Used ----------------- None Achievements -------------- None Challenges ------------ None Game ------ Seed DirectedReactiveChip Manual? 0 Play Time 00:40:21 Cumulative 289.4 hours Start 2025.09.15 @ 12:30:20 End 2025.09.15 @ 16:05:24 Sessions 7 Manual Loads 0 Difficulty Rogue Special Mode None Game No. 412 Rogue 412 Adventurer 0 Explorer 0 Win Type - Total 8 Types 5/0/1/2/0/0/0/0/0/0 Lore% 84 Gallery% 80 Achievement% 63 Wizard Run 0 Options --------- Layout 0 ASCII 0 Keyboard 0 Movement Mouse Keybinds 0 Fullscreen 1 Font 24/Smallcaps Map View 76x50 Zoom Use 0% Tactical HUD 1 Map Filters NONE Filters NONE Steam 1 RUN: d5466b0e-47b8-43b0-a8d0-9fc536462d6d